fUSD/lending_fUSD_20240805
["ID","MTS","AMOUNT","RATE_DAILY","PERIOD"]
[334219984,1722844108288,-500.0,0.00044109,60]
[334219985,1722844108323,-4474.14,0.00044109,60]
[334219986,1722844108362,-795.18,0.00044109,60]
[334219987,1722844108403,-1288.51,0.00044109,60]
[334219988,1722844108441,-500.0,0.00044109,60]
[334219989,1722844108478,-772.19,0.00044109,60]
[334219990,1722844108514,-1615.12,0.00044109,60]
[334219991,1722844108550,-1472.89,0.00044109,60]
[334219992,1722844108587,-2513.59,0.00044109,60]
[334219993,1722844108627,-500.0,0.00044109,60]
[334219994,1722844108664,-500.0,0.00044109,60]
[334219995,1722844108702,-683.57,0.00044109,60]
[334219996,1722844108741,-1121.51,0.00044109,60]
[334219997,1722844108780,-586.11,0.00044109,60]
[334219998,1722844108818,-500.0,0.00044109,60]
[334219999,1722844108857,-3536.48,0.00044109,60]
[334220000,1722844108901,-500.0,0.00044109,60]
[334220001,1722844108941,-677.33,0.00044109,60]
[334220002,1722844108980,-500.0,0.00044109,60]
[334220003,1722844109020,-500.0,0.00044109,60]
[334220004,1722844109062,-500.0,0.00044109,60]
[334220005,1722844109103,-500.0,0.00044109,60]
[334220006,1722844109144,-500.0,0.00044109,60]
[334220007,1722844109183,-500.0,0.00044109,60]
[334220008,1722844109220,-534.3,0.00044109,60]
[334220009,1722844109258,-500.0,0.00044109,60]
[334220010,1722844109295,-1639.94,0.00044109,60]
[334220011,1722844109334,-500.0,0.00044109,60]
[334220012,1722844109372,-500.0,0.00044109,60]
[334220013,1722844109410,-576.41,0.00044109,60]
[334220014,1722844109449,-500.0,0.00044109,60]
[334220015,1722844109487,-500.0,0.00044109,60]
[334220016,1722844109524,-500.0,0.00044109,60]
[334220017,1722844109563,-199.93361947,0.00044109,60]
[334220018,1722844109600,-500.0,0.00044109,60]
[334220019,1722844109641,-500.0,0.00044109,60]
[334220020,1722844109681,-500.0,0.00044109,60]
[334220021,1722844109719,-1009.49,0.00044109,60]
[334220022,1722844109761,-2105.43,0.00044109,60]
[334220023,1722844109802,-500.0,0.00044109,60]
[334220024,1722844109842,-500.0,0.00044109,60]
[334220025,1722844109883,-585.87,0.00044109,60]
[334220026,1722844109923,-500.0,0.00044109,60]
[334220027,1722844109965,-1492.65,0.00044109,60]
[334220028,1722844110005,-1286.6,0.00044109,60]
[334220029,1722844110046,-1984.69,0.00044109,60]
[334220030,1722844110087,-500.0,0.00044109,60]
[334220031,1722844110132,-500.0,0.00044109,60]
[334220032,1722844110174,-500.0,0.00044109,60]
[334220033,1722844110214,-2105.98,0.00044109,60]
[334220034,1722844110253,-1249.4,0.00044109,60]
[334220035,1722844110293,-500.0,0.00044109,60]
[334220036,1722844110331,-1170.05,0.00044109,60]
[334220037,1722844110376,-962.27,0.00044109,60]
[334220038,1722844110416,-2483.31,0.00044109,60]
[334220039,1722844110456,-1643.1,0.00044109,60]
[334220040,1722844110496,-1511.13,0.00044109,60]
[334220041,1722844110537,-2956.4,0.00044109,60]
[334220042,1722844110576,-500.0,0.00044109,60]
[334220043,1722844110621,-500.0,0.00044109,60]
[334220044,1722844110660,-1504.27,0.00044109,60]
[334220045,1722844110700,-505.0503963,0.00044109,60]
[334220046,1722844110743,-754.33,0.00044109,60]
[334220047,1722844110783,-1298.6,0.00044109,60]
[334220048,1722844110823,-500.0,0.00044109,60]
[334220049,1722844110872,-500.0,0.00044109,60]
[334220050,1722844110915,-500.0,0.00044109,60]
[334220051,1722844110957,-500.0,0.00044109,60]
[334220052,1722844111000,-3521.35,0.00044109,60]
[334220053,1722844111042,-722.49,0.00044109,60]
[334220054,1722844111086,-256.75,0.00044109,60]
[334220055,1722844111132,-500.0,0.00044109,60]
[334220056,1722844111173,-1043.13,0.00044109,60]
[334220057,1722844111213,-500.0,0.00044109,60]
[334220058,1722844111252,-434.17625393,0.00044109,60]
[334220059,1722844111290,-500.0,0.00044109,60]
[334220060,1722844111329,-936.69,0.00044109,60]
[334220061,1722844111372,-500.0,0.00044109,60]
[334220062,1722844111413,-2164.97,0.00044109,60]
[334220063,1722844111454,-504.07,0.00044109,60]
[334220064,1722844111496,-1861.15,0.00044109,60]
[334220065,1722844111537,-500.0,0.00044109,60]
[334220066,1722844111577,-500.0,0.00044109,60]
[334220067,1722844111621,-4515.22,0.00044109,60]
[334220068,1722844111662,-500.0,0.00044109,60]
[334220069,1722844111702,-500.0,0.00044109,60]
[334220070,1722844111743,-1258.84,0.00044109,60]
[334220071,1722844111784,-776.86,0.00044109,60]
[334220072,1722844111825,-500.0,0.00044109,60]
[334220073,1722844111866,-500.0,0.00044109,60]
[334220074,1722844111916,-859.54,0.00044109,60]
[334220075,1722844111956,-1478.25,0.00044109,60]
[334220076,1722844111996,-513.56,0.00044109,60]
[334220077,1722844112036,-970.46,0.00044109,60]
[334220078,1722844112077,-585.63,0.00044109,60]
[334220079,1722844112118,-500.0,0.00044109,60]
[334220080,1722844112159,-936.94,0.00044109,60]
[334220081,1722844112199,-705.37,0.00044109,60]
[334220082,1722844112237,-1195.43,0.00044109,60]
[334220083,1722844112466,-1968.5,0.00044109,60]
[334220084,1722844112540,-500.0,0.00044109,60]
[334220085,1722844112579,-2221.06,0.00044109,60]
[334220086,1722844112619,-1495.03,0.00044109,60]
[334220087,1722844112656,-1252.99,0.00044109,60]
[334220088,1722844112694,-3474.81,0.00044109,60]
[334220089,1722844112732,-631.95,0.00044109,60]
[334220090,1722844112771,-1500.6,0.00044109,60]
[334220091,1722844112812,-1569.23,0.00044109,60]
[334220092,1722844112853,-3329.16,0.00044109,60]
[334220093,1722844112896,-500.0,0.00044109,60]
[334220094,1722844112936,-500.0,0.00044109,60]
[334220095,1722844112978,-500.0,0.00044109,60]
[334220096,1722844113019,-500.0,0.00044109,60]
[334220097,1722844113061,-806.66,0.00044109,60]
[334220098,1722844113104,-500.0,0.00044109,60]
[334220099,1722844113148,-303.05383956,0.00044109,60]
[334220100,1722844113191,-3499.13,0.00044109,60]
[334220101,1722844113233,-500.0,0.00044109,60]
[334220102,1722844113275,-500.0,0.00044109,60]
[334220103,1722844113318,-500.0,0.00044109,60]
[334220104,1722844113361,-3090.85,0.00044109,60]
[334220105,1722844113407,-514.65156143,0.00044109,60]
[334220106,1722844113449,-500.0,0.00044109,60]
[334220107,1722844113489,-1026.49,0.00044109,60]
[334220108,1722844113530,-2889.59,0.00044109,60]
[334220109,1722844113570,-500.0,0.00044109,60]
[334220110,1722844113609,-500.0,0.00044109,60]
[334220111,1722844113652,-3582.16,0.00044109,60]
[334220112,1722844113692,-1190.05,0.00044109,60]
[334220113,1722844113734,-804.29,0.00044109,60]
[334220114,1722844113775,-648.35,0.00044109,60]
[334220115,1722844113816,-1012.27,0.00044109,60]
[334220116,1722844113857,-500.0,0.00044109,60]
[334220117,1722844113900,-2656.27,0.00044109,60]
[334220118,1722844113940,-3334.46,0.00044109,60]
[334220119,1722844113982,-500.0,0.00044109,60]
[334220120,1722844114023,-2000.0,0.00044109,60]
[334220121,1722844114065,-1816.19,0.00044109,60]
[334220122,1722844114109,-500.0,0.00044109,60]
[334220123,1722844114161,-500.0,0.00044109,60]
[334220124,1722844114202,-500.0,0.00044109,60]
[334220125,1722844114240,-1419.38,0.00044109,60]
[334220126,1722844114282,-1205.65,0.00044109,60]
[334220127,1722844114320,-206.99965094,0.00044109,60]
[334220128,1722844114360,-960.05,0.00044109,60]
[334220129,1722844114404,-2829.69,0.00044109,60]
[334220130,1722844114447,-500.0,0.00044109,60]
[334220131,1722844114489,-1249.16,0.00044109,60]
[334220132,1722844114528,-213.90621156,0.00044109,60]
[334220133,1722844114566,-500.0,0.00044109,60]
[334220134,1722844114605,-1429.17,0.00044109,60]
[334220135,1722844114648,-2102.16,0.00044109,60]
[334220136,1722844114687,-1239.51,0.00044109,60]
[334220137,1722844114725,-500.0,0.00044109,60]
[334220138,1722844114764,-500.0,0.00044109,60]
[334220139,1722844114804,-1591.86,0.00044109,60]
[334220140,1722844114847,-621.71,0.00044109,60]
[334220141,1722844114887,-2254.38,0.00044109,60]
[334220142,1722844114929,-500.0,0.00044109,60]
[334220143,1722844114970,-602.16,0.00044109,60]
[334220144,1722844115012,-502.69529834,0.00044109,60]
[334220145,1722844115052,-1444.06,0.00044109,120]
[334220146,1722844115096,-2796.97,0.00044109,60]
[334220147,1722844115138,-540.84,0.00044109,60]
[334220148,1722844115178,-568.86,0.00044109,60]
[334220149,1722844115220,-1381.56,0.00044109,60]
[334220150,1722844115258,-500.0,0.00044109,60]
[334220151,1722844115298,-500.0,0.00044109,60]
[334220152,1722844115337,-990.25,0.00044109,60]
[334220153,1722844115378,-627.42,0.00044109,60]
[334220154,1722844115418,-3059.77,0.00044109,60]
[334220155,1722844115459,-1387.53,0.00044109,60]
[334220156,1722844115499,-519.52583516,0.00044109,60]
[334220157,1722844115537,-500.0,0.00044109,60]
[334220158,1722844115574,-500.0,0.00044109,60]
[334220159,1722844115611,-1284.45,0.00044109,60]
[334220160,1722844115650,-500.0,0.00044109,60]
[334220161,1722844115688,-2164.6,0.00044109,60]
[334220162,1722844115726,-1495.86,0.00044109,60]
[334220163,1722844115767,-1060.48,0.00044109,60]
[334220164,1722844115806,-780.62,0.00044109,60]
[334220165,1722844115846,-500.0,0.00044109,60]
[334220166,1722844115885,-500.0,0.00044109,60]
[334220167,1722844115924,-4606.13,0.00044109,60]
[334220168,1722844115963,-500.0,0.00044109,60]
[334220169,1722844116002,-579.6,0.00044109,60]
[334220170,1722844116042,-500.0,0.00044109,60]
[334220171,1722844116083,-738.94,0.00044109,60]
[334220172,1722844116125,-500.0,0.00044109,60]
[334220173,1722844116166,-519.54,0.00044109,60]
[334220174,1722844116206,-648.7,0.00044109,60]
[334220175,1722844116243,-1716.06,0.00044109,60]
[334220176,1722844116282,-1963.93,0.00044109,60]
[334220177,1722844116318,-1163.31,0.00044109,60]
[334220178,1722844116355,-3883.3,0.00044109,60]
[334220179,1722844116397,-500.0,0.00044109,60]
[334220180,1722844116435,-900.66,0.00044109,60]
[334220181,1722844116474,-500.0,0.00044109,60]
[334220182,1722844116515,-1444.52,0.00044109,60]
[334220183,1722844116554,-1825.76,0.00044109,60]
[334220184,1722844116593,-991.12,0.00044109,60]
[334220185,1722844116634,-1271.73,0.00044109,60]
[334220186,1722844116671,-500.0,0.00044109,60]
[334220187,1722844116935,-500.0,0.00044109,60]
[334220188,1722844116977,-500.0,0.00044109,60]
[334220189,1722844117019,-776.44,0.00044109,60]
[334220190,1722844117059,-500.0,0.00044109,60]
[334220191,1722844117103,-500.0,0.00044109,60]
[334220192,1722844117144,-557.25,0.00044109,60]
[334220193,1722844117185,-500.0,0.00044109,60]
[334220194,1722844117226,-500.0,0.00044109,60]
[334220195,1722844117265,-781.71,0.00044109,60]
[334220196,1722844117305,-2245.48,0.00044109,60]
[334220197,1722844117345,-2495.7,0.00044109,60]
[334220198,1722844117385,-500.0,0.00044109,60]
[334220199,1722844117423,-3163.86,0.00044109,60]
[334220200,1722844117462,-1479.42,0.00044109,60]
[334220201,1722844117499,-500.67771501,0.00044109,60]
[334220202,1722844117537,-2335.18,0.00044109,60]
[334220203,1722844117577,-500.0,0.00044109,60]
[334220204,1722844117616,-2512.24,0.00044109,60]
[334220205,1722844117659,-500.0,0.00044109,60]
[334220206,1722844117694,-509.34343501,0.00044109,60]
[334220207,1722844117732,-500.0,0.00044109,60]
[334220208,1722844117770,-500.0,0.00044109,60]
[334220209,1722844117809,-500.0,0.00044109,60]
[334220210,1722844117847,-500.0,0.00044109,60]
[334220211,1722844117884,-1318.12,0.00044109,60]
[334220212,1722844117923,-2546.71,0.00044109,60]
[334220213,1722844117964,-2643.24,0.00044109,60]
[334220214,1722844118004,-500.0,0.00044109,60]
[334220215,1722844118045,-3011.57,0.00044109,60]
[334220216,1722844118086,-500.0,0.00044109,60]
[334220217,1722844118127,-827.48,0.00044109,60]
[334220218,1722844118167,-500.0,0.00044109,60]
[334220219,1722844118205,-10089.31,0.00044109,60]
[334220220,1722844118242,-300.0,0.00044109,60]
[334220221,1722844118278,-500.0,0.00044109,60]
[334220222,1722844118314,-500.0,0.00044109,60]
[334220223,1722844118353,-500.0,0.00044109,60]
[334220224,1722844118392,-500.0,0.00044109,60]
[334220225,1722844118431,-500.0,0.00044109,60]
[334220226,1722844118468,-500.0,0.00044109,60]
[334220227,1722844118508,-502.39291005,0.00044109,60]
[334220228,1722844118546,-500.0,0.00044109,60]
[334220229,1722844118584,-500.0,0.00044109,60]
[334220230,1722844118628,-2761.8,0.00044109,60]
[334220231,1722844118666,-875.89,0.00044109,60]
[334220232,1722844118706,-500.0,0.00044109,60]
[334220233,1722844118746,-500.0,0.00044109,60]
[334220234,1722844118785,-909.27,0.00044109,60]
[334220235,1722844118824,-1834.13,0.00044109,60]
[334220236,1722844118864,-500.0,0.00044109,60]
[334220237,1722844118906,-500.0,0.00044109,60]
[334220238,1722844118946,-1594.18,0.00044109,60]
[334220239,1722844118986,-904.65,0.00044109,60]
[334220240,1722844119026,-500.0,0.00044109,60]
[334220241,1722844119066,-500.0,0.00044109,60]
[334220242,1722844119112,-1166.66,0.00044109,60]
[334220243,1722844119154,-500.0,0.00044109,60]
[334220244,1722844119195,-500.0,0.00044109,60]
[334220245,1722844119233,-3601.46,0.00044109,60]
[334220246,1722844119272,-927.02,0.00044109,60]
[334220247,1722844119310,-5377.57,0.00044109,60]
[334220248,1722844119348,-3723.72,0.00044109,60]
[334220249,1722844119387,-23612.73,0.00044109,60]
[334220250,1722844119427,-500.0,0.00044109,60]
[334220251,1722844119465,-500.0,0.00044109,60]
[334220252,1722844119504,-2267.85,0.00044109,60]
[334220253,1722844119541,-500.0,0.00044109,60]
[334220254,1722844119578,-500.0,0.00044109,60]
[334220255,1722844119614,-1760.51,0.00044109,60]
[334220256,1722844119652,-500.0,0.00044109,60]
[334220257,1722844119687,-2589.98,0.00044109,60]
[334220258,1722844119722,-500.0,0.00044109,60]
[334220259,1722844119759,-856.68,0.00044109,60]
[334220260,1722844119796,-2428.43,0.00044109,60]
[334220261,1722844119834,-6443.39,0.00044109,60]
[334220262,1722844119871,-502.19927004,0.00044109,60]
[334220263,1722844119915,-844.83,0.00044109,60]
[334220264,1722844119953,-1790.38,0.00044109,60]
[334220265,1722844119994,-500.59393795,0.00044109,60]
[334220266,1722844120040,-500.0,0.00044109,60]
[334220267,1722844120086,-1239.85,0.00044109,60]
[334220268,1722844120137,-500.0,0.00044109,60]
[334220269,1722844120182,-2135.68,0.00044109,60]
[334220270,1722844120222,-7781.8,0.00044109,60]
[334220271,1722844120262,-500.0,0.00044109,60]
[334220272,1722844120302,-500.0,0.00044109,60]
[334220273,1722844120342,-500.0,0.00044109,60]
[334220274,1722844120383,-3762.63,0.00044109,60]
[334220275,1722844120423,-12434.34,0.00044109,60]
[334220276,1722844120464,-500.0,0.00044109,60]
[334220277,1722844120504,-500.0,0.00044109,60]
[334220278,1722844120543,-29175.13,0.00044109,60]
[334220279,1722844120582,-2229.68,0.00044109,60]
[334220280,1722844120620,-1702.7,0.00044109,60]
[334220281,1722844120661,-3079.71,0.00044109,60]
[334220282,1722844120698,-2685.43,0.00044109,60]
[334220283,1722844120736,-12156.11,0.00044109,60]
[334220284,1722844120774,-538.05955938,0.00044109,60]
[334220285,1722844120815,-676.45,0.00044109,60]
[334220286,1722844120853,-500.0,0.00044109,60]
[334220287,1722844120892,-500.0,0.00044109,60]
[334220288,1722844120933,-11527.03,0.00044109,60]
[334220289,1722844120987,-2942.99,0.00044109,60]
[334220290,1722844121029,-5533.89,0.00044109,60]
[334220291,1722844121292,-500.0,0.00044109,60]
[334220292,1722844121333,-616.6843394,0.00044109,60]
[334220293,1722844121376,-1147.24,0.00044109,60]
[334220294,1722844121414,-500.0,0.00044109,60]
[334220295,1722844121455,-500.0,0.00044109,60]
[334220296,1722844121497,-500.0,0.00044109,60]
[334220297,1722844121539,-966.49,0.00044109,60]
[334220298,1722844121581,-7052.9,0.00044109,60]
[334220299,1722844121620,-500.0,0.00044109,60]
[334220300,1722844121661,-500.0,0.00044109,60]
[334220301,1722844121699,-1533.46,0.00044109,60]
[334220302,1722844121739,-1600.86,0.00044109,60]
[334220303,1722844121779,-500.0,0.00044109,60]
[334220304,1722844121822,-2844.29,0.00044109,60]
[334220305,1722844121863,-500.0,0.00044109,60]
[334220306,1722844121905,-4113.34,0.00044109,60]
[334220307,1722844121947,-1215.01,0.00044109,60]
[334220308,1722844121988,-1182.78,0.00044109,60]
[334220309,1722844122029,-500.0,0.00044109,60]
[334220310,1722844122070,-435.25895845,0.00044109,60]
[334220311,1722844122118,-7563.74,0.00044109,60]
[334220312,1722844122167,-584.85918951,0.00044109,60]
[334220313,1722844122210,-885.81,0.00044109,60]
[334220314,1722844122255,-2342.88,0.00044109,60]
[334220315,1722844122299,-533.58,0.00044109,60]
[334220316,1722844122342,-600.6,0.00044109,60]
[334220317,1722844122391,-500.0,0.00044109,60]
[334220318,1722844122432,-2470.61,0.00044109,60]
[334220319,1722844122475,-1107.73,0.00044109,60]
[334220320,1722844122516,-3795.26,0.00044109,60]
[334220321,1722844122557,-623.25,0.00044109,60]
[334220322,1722844122598,-500.98810102,0.00044109,60]
[334220323,1722844122638,-500.0,0.00044109,60]
[334220324,1722844122678,-2147.31,0.00044109,60]
[334220325,1722844122719,-817.97,0.00044109,60]
[334220326,1722844122761,-11685.73,0.00044109,60]
[334220327,1722844122803,-500.0,0.00044109,60]
[334220328,1722844122843,-658.81,0.00044109,60]
[334220329,1722844122885,-4333.16,0.00044109,60]
[334220330,1722844122926,-500.0,0.00044109,60]
[334220331,1722844122966,-500.0,0.00044109,60]
[334220332,1722844123006,-3360.52,0.00044109,60]
[334220333,1722844123047,-2451.49,0.00044109,60]
[334220334,1722844123088,-2337.27,0.00044109,60]
[334220335,1722844123131,-5093.48,0.00044109,60]
[334220336,1722844123172,-780.37,0.00044109,60]
[334220337,1722844123211,-1845.9,0.00044109,60]
[334220338,1722844123251,-213.07521306,0.00044109,60]
[334220339,1722844123290,-1210.22,0.00044109,60]
[334220340,1722844123331,-1970.75,0.00044109,60]
[334220341,1722844123370,-500.0,0.00044109,60]
[334220342,1722844123413,-500.53777239,0.00044109,60]
[334220343,1722844123453,-500.0,0.00044109,60]
[334220344,1722844123491,-500.0,0.00044109,60]
[334220345,1722844123527,-2131.79,0.00044109,60]
[334220346,1722844123562,-1931.56,0.00044109,60]
[334220347,1722844123598,-16403.65,0.00044109,60]
[334220348,1722844123636,-1282.11,0.00044109,60]
[334220349,1722844123680,-500.0,0.00044109,60]
[334220350,1722844123719,-1001.83,0.00044109,60]
[334220351,1722844123759,-500.0,0.00044109,60]
[334220352,1722844123799,-587.76,0.00044109,60]
[334220353,1722844123841,-6034.41,0.00044109,60]
[334220354,1722844123881,-500.0,0.00044109,60]
[334220355,1722844123921,-500.0,0.00044109,60]
[334220356,1722844123961,-809.03,0.00044109,60]
[334220357,1722844124002,-979.75,0.00044109,60]
[334220358,1722844124042,-1311.26,0.00044109,60]
[334220359,1722844124084,-500.0,0.00044109,60]
[334220360,1722844124123,-500.0,0.00044109,60]
[334220361,1722844124168,-500.0,0.00044109,60]
[334220362,1722844124207,-500.0,0.00044109,60]
[334220363,1722844124245,-5522.16,0.00044109,60]
[334220364,1722844124282,-4237.06,0.00044109,60]
[334220365,1722844124320,-2782.82,0.00044109,60]
[334220366,1722844124359,-1443.28,0.00044109,60]
[334220367,1722844124399,-500.0,0.00044109,60]
[334220368,1722844124438,-4203.96,0.00044109,60]
[334220369,1722844124476,-500.0,0.00044109,60]
[334220370,1722844124514,-1207.51,0.00044109,60]
[334220371,1722844124553,-500.0,0.00044109,60]
[334220372,1722844124591,-648.98,0.00044109,60]
[334220373,1722844124635,-1043.74,0.00044109,60]
[334220374,1722844124677,-7649.72,0.00044109,60]
[334220375,1722844124719,-4279.22,0.00044109,60]
[334220376,1722844124760,-502.29394252,0.00044109,60]
[334220377,1722844124804,-4848.54,0.00044109,60]
[334220378,1722844124847,-500.0,0.00044109,60]
[334220379,1722844124889,-500.0,0.00044109,60]
[334220380,1722844124931,-1091.71,0.00044109,60]
[334220381,1722844124973,-500.0,0.00044109,60]
[334220382,1722844125016,-500.0,0.00044109,60]
[334220383,1722844125057,-500.79009036,0.00044109,60]
[334220384,1722844125099,-1603.88,0.00044109,60]
[334220385,1722844125141,-724.93,0.00044109,60]
[334220386,1722844125181,-500.0,0.00044109,60]
[334220387,1722844125221,-3030.88,0.00044109,60]
[334220388,1722844125260,-2492.89,0.00044109,60]
[334220389,1722844125298,-500.0,0.00044109,60]
[334220390,1722844125336,-500.0,0.00044109,60]
[334220391,1722844125379,-2806.39,0.00044109,60]
[334220392,1722844125421,-500.0,0.00044109,60]
[334220393,1722844125463,-5187.62,0.00044109,60]
[334220394,1722844125725,-4337.32,0.00044109,60]
[334220395,1722844125766,-3047.68,0.00044109,60]
[334220396,1722844125806,-1406.83,0.00044109,60]
[334220397,1722844125847,-500.0,0.00044109,60]
[334220398,1722844125887,-500.0,0.00044109,60]
[334220399,1722844125925,-500.0,0.00044109,60]
[334220400,1722844125964,-500.0,0.00044109,60]
[334220401,1722844126006,-500.0,0.00044109,60]
[334220402,1722844126047,-3751.26,0.00044109,60]
[334220403,1722844126093,-500.0,0.00044109,60]
[334220404,1722844126138,-3262.95,0.00044109,60]
[334220405,1722844126177,-500.0,0.00044109,60]
[334220406,1722844126216,-487.5828812,0.00044109,60]
[334220407,1722844126255,-8978.52,0.00044109,60]
[334220408,1722844126295,-2169.05,0.00044109,60]
[334220409,1722844126335,-500.0,0.00044109,60]
[334220410,1722844126375,-2712.85,0.00044109,60]
[334220411,1722844126420,-25334.1,0.00044109,60]
[334220412,1722844126459,-2362.58,0.00044109,60]
[334220413,1722844126497,-500.0,0.00044109,60]
[334220414,1722844126534,-500.0,0.00044109,60]
[334220415,1722844126571,-774.42,0.00044109,60]
[334220416,1722844126611,-500.0,0.00044109,60]
[334220417,1722844126652,-500.0,0.00044109,60]
[334220418,1722844126690,-2055.64,0.00044109,60]
[334220419,1722844126731,-472.64769003,0.00044109,60]
[334220420,1722844126772,-953.05,0.00044109,60]
[334220421,1722844126814,-500.0,0.00044109,60]
[334220422,1722844126854,-592.17,0.00044109,60]
[334220423,1722844126902,-5633.77,0.00044109,60]
[334220424,1722844126942,-500.0,0.00044109,60]
[334220425,1722844126982,-4804.66,0.00044109,60]
[334220426,1722844127021,-500.0,0.00044109,60]
[334220427,1722844127061,-500.0,0.00044109,60]
[334220428,1722844127106,-1844.98,0.00044109,60]
[334220429,1722844127147,-500.0,0.00044109,60]
[334220430,1722844127192,-7321.46,0.00044109,60]
[334220431,1722844127232,-2404.07,0.00044109,60]
[334220432,1722844127272,-500.0,0.00044109,60]
[334220433,1722844127313,-889.29,0.00044109,60]
[334220434,1722844127353,-563.7,0.00044109,60]
[334220435,1722844127396,-500.0,0.00044109,60]
[334220436,1722844127445,-1452.56,0.00044109,60]
[334220437,1722844127490,-2837.34,0.00044109,60]
[334220438,1722844127529,-1383.25,0.00044109,60]
[334220439,1722844127570,-762.26,0.00044109,60]
[334220440,1722844127609,-500.0,0.00044109,60]
[334220441,1722844127647,-500.0,0.00044109,60]
[334220442,1722844127686,-26982.14,0.00044109,60]
[334220443,1722844127726,-1636.8,0.00044109,60]
[334220444,1722844127769,-1626.31,0.00044109,60]
[334220445,1722844127812,-500.0,0.00044109,60]
[334220446,1722844127856,-500.0,0.00044109,60]
[334220447,1722844127901,-19915.03,0.00044109,60]
[334220448,1722844127943,-1943.98,0.00044109,60]
[334220449,1722844127988,-500.0,0.00044109,60]
[334220450,1722844128032,-500.0,0.00044109,60]
[334220451,1722844128075,-500.0,0.00044109,60]
[334220452,1722844128120,-1832.2,0.00044109,60]
[334220453,1722844128169,-500.0,0.00044109,60]
[334220454,1722844128211,-3461.41,0.00044109,60]
[334220455,1722844128253,-3266.94,0.00044109,60]
[334220456,1722844128295,-500.0,0.00044109,60]
[334220457,1722844128335,-2283.58,0.00044109,60]
[334220458,1722844128376,-3881.78,0.00044109,60]
[334220459,1722844128421,-1444.46,0.00044109,60]
[334220460,1722844128462,-500.53111851,0.00044109,60]
[334220461,1722844128501,-500.0,0.00044109,60]
[334220462,1722844128537,-500.0,0.00044109,60]
[334220463,1722844128574,-500.0,0.00044109,60]
[334220464,1722844128611,-1062.04,0.00044109,60]
[334220465,1722844128648,-500.0,0.00044109,60]
[334220466,1722844128686,-4891.1,0.00044109,60]
[334220467,1722844128723,-688.93,0.00044109,60]
[334220468,1722844128765,-9070.21,0.00044109,60]
[334220469,1722844128806,-500.0,0.00044109,60]
[334220470,1722844128848,-1375.72,0.00044109,60]
[334220471,1722844128891,-7616.7,0.00044109,60]
[334220472,1722844128933,-500.0,0.00044109,60]
[334220473,1722844128978,-500.0,0.00044109,60]
[334220474,1722844129019,-500.0,0.00044109,60]
[334220475,1722844129059,-1059.45,0.00044109,60]
[334220476,1722844129099,-2351.5,0.00044109,60]
[334220477,1722844129141,-500.0,0.00044109,60]
[334220478,1722844129183,-1299.44,0.00044109,60]
[334220479,1722844129223,-571.28,0.00044109,60]
[334220480,1722844129261,-500.0,0.00044109,60]
[334220481,1722844129301,-1764.44,0.00044109,60]
[334220482,1722844129340,-2213.87,0.00044109,60]
[334220483,1722844129381,-643.06,0.00044109,60]